fUST/lending_fUST_20250708
["ID","MTS","AMOUNT","RATE_DAILY","PERIOD"]
[370368762,1751982642617,-181.644437,0.00019246,2]
[370368763,1751982642626,-151.0,0.00019287,2]
[370368764,1751982642636,-290.38071,0.00019287,2]
[370368765,1751982642646,-151.0,0.00019315,2]
[370368766,1751982642655,-151.0,0.00019329,2]
[370368767,1751982642841,-284.355416,0.00019329,2]
[370368768,1751982642851,-284.355416,0.00019329,2]
[370368769,1751982642861,-151.0,0.00019329,2]
[370368770,1751982642870,-181.644437,0.00019329,2]
[370368771,1751982642882,-181.644437,0.00019329,2]
[370368773,1751982642892,-151.0,0.00019452,2]
[370368775,1751982642902,-151.0,0.00019452,2]
[370368777,1751982642911,-151.0,0.00019452,2]
[370368779,1751982642921,-151.0,0.00019452,2]
[370368781,1751982642930,-460.0,0.00019452,2]
[370368783,1751982642940,-284.355416,0.00019452,2]
[370368785,1751982642949,-284.355416,0.00019452,2]
[370368787,1751982642959,-284.355416,0.00019452,2]
[370368788,1751982642969,-284.355408,0.00019452,2]
[370368789,1751982642979,-460.0,0.00019452,2]
[370368790,1751982642990,-460.0,0.00019452,2]
[370368792,1751982642999,-460.0,0.00019452,2]
[370368793,1751982643008,-460.00001425,0.00019452,2]
[370368794,1751982643018,-151.0,0.00019452,2]
[370368795,1751982643027,-151.0,0.00019452,2]
[370368796,1751982643036,-151.0,0.00019452,2]
[370368797,1751982643046,-460.0,0.00019452,2]
[370368798,1751982643056,-484.26453525,0.00019452,2]
[370368799,1751982643066,-181.644437,0.00019452,2]
[370368800,1751982643076,-181.644437,0.00019452,2]
[370368801,1751982643085,-181.644437,0.00019452,2]
[370368802,1751982643095,-181.644433,0.00019452,2]
[370368803,1751982643104,-460.0,0.00019452,2]
[370368804,1751982643113,-460.0,0.00019452,2]
[370368805,1751982643123,-460.0,0.00019452,2]
[370368806,1751982643132,-460.0,0.00019452,2]
[370368807,1751982643142,-460.0,0.00019452,2]
[370368808,1751982643151,-460.0,0.00019452,2]
[370368809,1751982643161,-460.0,0.00019452,2]
[370368810,1751982643170,-460.0,0.00019452,2]
[370368811,1751982643180,-197.46680754,0.00019452,2]
[370368812,1751982643189,-460.0,0.00019452,2]
[370368813,1751982643199,-460.0,0.00019452,2]
[370368814,1751982643208,-460.0,0.00019452,2]
[370368815,1751982643218,-295.87952164,0.00019452,2]
[370368816,1751982643228,-460.0,0.00019452,2]
[370368817,1751982643237,-460.0,0.00019452,2]
[370368818,1751982643247,-460.0,0.00019452,2]
[370368819,1751982643257,-460.0,0.00019452,2]
[370368820,1751982643267,-460.0,0.00019452,2]
[370368821,1751982643276,-502.55,0.00019452,2]
[370368822,1751982643286,-460.0,0.00019452,2]
[370368823,1751982643296,-460.0,0.00019452,2]
[370368824,1751982643307,-460.0,0.00019452,2]
[370368825,1751982643316,-460.0,0.00019452,2]
[370368826,1751982643326,-407.2365,0.00019452,2]
[370368827,1751982643335,-460.0,0.00019452,2]
[370368828,1751982643344,-460.0,0.00019452,2]
[370368829,1751982643354,-460.0,0.00019452,2]
[370368830,1751982643364,-460.0,0.00019452,2]
[370368831,1751982643373,-266.81286673,0.00019452,2]
[370368832,1751982643383,-460.0,0.00019452,2]
[370368833,1751982643392,-460.0,0.00019452,2]
[370368834,1751982643402,-483.42,0.00019452,2]
[370368835,1751982643411,-625.67,0.00019452,2]
[370368836,1751982643420,-461.57923151,0.00019452,2]
[370368837,1751982643430,-752.9,0.00019452,2]
[370368839,1751982643440,-567.1,0.00019452,2]
[370368840,1751982643449,-460.0,0.00019452,2]
[370368841,1751982643458,-460.0,0.00019452,2]
[370368842,1751982643468,-460.0,0.00019452,2]
[370368843,1751982643478,-460.0,0.00019452,2]
[370368844,1751982643487,-460.0,0.00019452,2]
[370368845,1751982643496,-460.0,0.00019452,2]
[370368846,1751982643506,-460.0,0.00019452,2]
[370368847,1751982643516,-460.0,0.00019452,2]
[370368848,1751982643526,-460.0,0.00019452,2]
[370368849,1751982643536,-460.0,0.00019452,2]
[370368850,1751982643546,-460.0,0.00019452,2]
[370368851,1751982643557,-980.91,0.00019452,2]
[370368852,1751982643567,-460.0,0.00019452,2]
[370368853,1751982643587,-460.0,0.00019452,2]
[370368854,1751982643598,-208.51897562,0.00019452,2]
[370368855,1751982643609,-460.0,0.00019452,2]
[370368856,1751982643619,-915.77,0.00019452,2]
[370368857,1751982643629,-538.3,0.00019452,2]
[370368858,1751982643639,-460.0,0.00019452,2]
[370368859,1751982643650,-460.0,0.00019452,2]
[370368860,1751982643660,-460.0,0.00019452,2]
[370368861,1751982643670,-460.0,0.00019452,2]
[370368862,1751982643680,-667.98,0.00019452,2]
[370368863,1751982643691,-460.0,0.00019452,2]
[370368864,1751982643704,-460.0,0.00019452,2]
[370368865,1751982643714,-460.0,0.00019452,2]
[370368866,1751982643724,-460.0,0.00019452,2]
[370368867,1751982643734,-460.0,0.00019452,2]
[370368868,1751982643747,-1367.37,0.00019452,2]
[370368869,1751982643757,-460.0,0.00019452,2]
[370368870,1751982643767,-1587.12,0.00019452,2]
[370368871,1751982643778,-237.61530236,0.00019452,2]
[370368872,1751982643789,-460.0,0.00019452,2]
[370368873,1751982643800,-460.0,0.00019452,2]
[370368874,1751982643811,-460.0,0.00019452,2]
[370368875,1751982643822,-460.0,0.00019452,2]
[370368876,1751982643832,-460.0,0.00019452,2]
[370368877,1751982643843,-1173.78,0.00019452,2]
[370368878,1751982643853,-550.33,0.00019452,2]
[370368879,1751982643864,-2831.46,0.00019452,2]
[370368880,1751982643875,-867.07,0.00019452,2]
[370368881,1751982643887,-460.39336776,0.00019452,2]
[370368882,1751982643898,-548.91,0.00019452,2]
[370368883,1751982643909,-460.0,0.00019452,2]
[370368884,1751982643920,-460.0,0.00019452,2]
[370368885,1751982643931,-1111.34,0.00019452,2]
[370368886,1751982643942,-842.96,0.00019452,2]
[370368887,1751982643953,-992.0,0.00019452,2]
[370368888,1751982643964,-460.0,0.00019452,2]
[370368889,1751982643974,-460.0,0.00019452,2]
[370368890,1751982643984,-273.28744193,0.00019452,2]
[370368891,1751982643995,-460.0,0.00019452,2]
[370368892,1751982644006,-2758.85,0.00019452,2]
[370368893,1751982644017,-2353.05,0.00019452,2]
[370368894,1751982644027,-614.8,0.00019452,2]
[370368895,1751982644038,-460.0,0.00019452,2]
[370368896,1751982644049,-460.0,0.00019452,2]
[370368897,1751982644060,-834.63,0.00019452,2]
[370368898,1751982644072,-7277.13,0.00019452,2]
[370368899,1751982644082,-5718.68,0.00019452,2]
[370368901,1751982644093,-2104.48,0.00019452,2]
[370368902,1751982644104,-963.6,0.00019452,2]
[370368903,1751982644114,-460.0,0.00019452,2]
[370368904,1751982644125,-460.0,0.00019452,2]
[370368905,1751982644134,-460.0,0.00019452,2]
[370368906,1751982644145,-460.0,0.00019452,2]
[370368907,1751982644155,-460.0,0.00019452,2]
[370368908,1751982644164,-1628.72,0.00019452,2]
[370368909,1751982644174,-1432.56,0.00019452,2]
[370368912,1751982644184,-460.0,0.00019452,2]
[370368914,1751982644193,-460.0,0.00019452,2]
[370368915,1751982644203,-1063.14,0.00019452,2]
[370368916,1751982644212,-460.0,0.00019452,2]
[370368917,1751982644221,-460.0,0.00019452,2]
[370368918,1751982644231,-550.48,0.00019452,2]
[370368919,1751982644240,-5312.05,0.00019452,2]
[370368921,1751982644250,-1380.75,0.00019452,2]
[370368922,1751982644260,-605.69,0.00019452,2]
[370368923,1751982644270,-460.0,0.00019452,2]
[370368924,1751982644280,-460.0,0.00019452,2]
[370368925,1751982644291,-608.25,0.00019452,2]
[370368926,1751982644302,-460.0,0.00019452,2]
[370368927,1751982644312,-460.0,0.00019452,2]
[370368928,1751982644322,-460.0,0.00019452,2]
[370368929,1751982644332,-460.0,0.00019452,2]
[370368930,1751982644342,-460.0,0.00019452,2]
[370368931,1751982644351,-460.0,0.00019452,2]
[370368932,1751982644361,-580.0,0.00019452,2]
[370368933,1751982644371,-460.0,0.00019452,2]
[370368934,1751982644381,-3144.31,0.00019452,2]
[370368935,1751982644391,-460.0,0.00019452,2]
[370368936,1751982644403,-460.0,0.00019452,2]
[370368937,1751982644414,-460.0,0.00019452,2]
[370368938,1751982644425,-460.0,0.00019452,2]
[370368939,1751982644436,-460.0,0.00019452,2]
[370368940,1751982644445,-584.23,0.00019452,2]
[370368941,1751982644456,-460.0,0.00019452,2]
[370368942,1751982644466,-460.0,0.00019452,2]
[370368943,1751982644477,-460.0,0.00019452,2]
[370368944,1751982644488,-1253.4,0.00019452,2]
[370368945,1751982644498,-3064.83,0.00019452,2]
[370368946,1751982644507,-460.0,0.00019452,2]
[370368947,1751982644518,-1068.32,0.00019452,2]
[370368948,1751982644528,-715.89,0.00019452,2]
[370368949,1751982644538,-578.89,0.00019452,2]
[370368950,1751982644548,-677.16,0.00019452,2]
[370368951,1751982644559,-1477.01,0.00019452,2]
[370368952,1751982644569,-647.4,0.00019452,2]
[370368953,1751982644579,-1565.89,0.00019452,2]
[370368954,1751982644589,-460.0,0.00019452,2]
[370368955,1751982644599,-460.0,0.00019452,2]
[370368956,1751982644609,-1476.13,0.00019452,2]
[370368957,1751982644619,-1288.68,0.00019452,2]
[370368958,1751982644629,-810.44,0.00019452,2]
[370368959,1751982644643,-460.0,0.00019452,2]
[370368960,1751982644653,-460.0,0.00019452,2]
[370368961,1751982644664,-1167.91,0.00019452,2]
[370368962,1751982644674,-460.0,0.00019452,2]
[370368963,1751982644683,-479.22,0.00019452,2]
[370368965,1751982644695,-460.0,0.00019452,2]
[370368968,1751982644706,-2720.72,0.00019452,2]
[370368971,1751982644716,-460.0,0.00019452,2]
[370368972,1751982644726,-662.2,0.00019452,2]
[370368973,1751982644736,-460.0,0.00019452,2]
[370368974,1751982644745,-460.0,0.00019452,2]
[370368975,1751982644755,-460.0,0.00019452,2]
[370368976,1751982644765,-500.0,0.00019487,2]
[370368977,1751982644774,-168.0,0.00019519,2]
[370368978,1751982644785,-500.0,0.00019556,2]
[370368979,1751982644795,-500.79233465,0.000196,2]
[370368980,1751982644805,-1422.0,0.00019643,2]
[370368981,1751982644815,-151.0,0.00019643,2]
[370368982,1751982644825,-151.0,0.00019643,2]
[370368984,1751982644834,-500.0,0.00019643,2]
[370368985,1751982644844,-1422.0,0.0001967,2]
[370368987,1751982644854,-151.0,0.0001967,2]
[370368989,1751982644863,-151.0,0.0001967,2]
[370368991,1751982644872,-500.0,0.0001967,2]
[370368994,1751982644889,-1422.0,0.00019698,2]
[370368995,1751982644902,-260.6982825,0.00019698,2]
[370368996,1751982644916,-151.0,0.00019698,2]
[370368997,1751982644929,-500.0,0.00019698,2]
[370368998,1751982644942,-151.0,0.000197,2]
[370368999,1751982644956,-1000.0,0.00019721,2]
[370369000,1751982644968,-314.5323604,0.00019721,2]
[370369001,1751982644980,-1000.0,0.00019721,2]
[370369002,1751982644990,-500.0,0.00019721,2]
[370369003,1751982645005,-1000.7661814,0.00019721,2]
[370369004,1751982645017,-491.04253568,0.00019721,2]
[370369005,1751982645029,-1000.0,0.00019721,2]
[370369006,1751982645040,-500.92668472,0.00019721,2]
[370369007,1751982645052,-150.0,0.00019721,2]
[370369008,1751982645065,-1422.0,0.00019725,2]
[370369009,1751982645078,-245.0,0.00019725,2]
[370369010,1751982645090,-500.0,0.00019725,2]
[370369011,1751982645102,-253.59831795,0.00019726,2]
[370369012,1751982645115,-460.0,0.00019726,2]
[370369013,1751982645127,-460.0,0.00019726,2]
[370369014,1751982645140,-460.0,0.00019726,2]
[370369015,1751982645152,-460.0,0.00019726,2]
[370369016,1751982645163,-460.0,0.00019726,2]
[370369017,1751982645174,-460.0,0.00019726,2]
[370369018,1751982645187,-460.0,0.00019726,2]
[370369019,1751982645202,-460.0,0.00019726,2]
[370369020,1751982645215,-460.0,0.00019726,2]
[370369021,1751982645227,-460.0,0.00019726,2]
[370369022,1751982645239,-460.0,0.00019726,2]
[370369023,1751982645252,-460.0,0.00019726,2]
[370369024,1751982645263,-460.0,0.00019726,2]
[370369025,1751982645275,-460.0,0.00019726,2]
[370369026,1751982645287,-460.0,0.00019726,2]
[370369027,1751982645298,-460.0,0.00019726,2]
[370369028,1751982645309,-460.0,0.00019726,2]
[370369029,1751982645320,-460.0,0.00019726,2]
[370369030,1751982645332,-502.55,0.00019726,2]
[370369031,1751982645344,-186.26157751,0.00019726,2]
[370369032,1751982645354,-460.0,0.00019726,2]
[370369033,1751982645366,-460.0,0.00019726,2]
[370369034,1751982645377,-569.99942975,0.00019726,2]
[370369035,1751982645389,-460.0,0.00019726,2]
[370369036,1751982645401,-460.0,0.00019726,2]
[370369037,1751982645413,-460.0,0.00019726,2]
[370369038,1751982645425,-460.0,0.00019726,2]
[370369039,1751982645437,-460.0,0.00019726,2]
[370369040,1751982645449,-460.0,0.00019726,2]
[370369041,1751982645461,-483.42,0.00019726,2]
[370369042,1751982645473,-625.67,0.00019726,2]
[370369043,1751982645486,-752.9,0.00019726,2]
[370369044,1751982645498,-567.1,0.00019726,2]
[370369045,1751982645509,-460.0,0.00019726,2]
[370369046,1751982645519,-460.0,0.00019726,2]
[370369047,1751982645529,-460.0,0.00019726,2]
[370369048,1751982645539,-460.0,0.00019726,2]
[370369049,1751982645550,-460.0,0.00019726,2]
[370369050,1751982645562,-460.0,0.00019726,2]
[370369051,1751982645573,-182.25411643,0.00019726,2]
[370369052,1751982645586,-237.88801584,0.00019726,2]
[370369053,1751982645598,-460.0,0.00019726,2]
[370369054,1751982645610,-460.0,0.00019726,2]
[370369055,1751982645621,-460.0,0.00019726,2]
[370369056,1751982645631,-980.91,0.00019726,2]
[370369057,1751982645642,-460.0,0.00019726,2]
[370369058,1751982645653,-460.0,0.00019726,2]
[370369059,1751982645666,-460.0,0.00019726,2]
[370369060,1751982645679,-915.77,0.00019726,2]
[370369061,1751982645691,-538.3,0.00019726,2]
[370369062,1751982645705,-289.37517474,0.00019726,2]
[370369063,1751982645715,-460.0,0.00019726,2]
[370369064,1751982645726,-460.0,0.00019726,2]
[370369065,1751982645736,-460.0,0.00019726,2]
[370369066,1751982645748,-667.98,0.00019726,2]
[370369067,1751982645759,-323.61,0.00019726,2]
[370369068,1751982645772,-460.0,0.00019726,2]
[370369069,1751982645783,-460.0,0.00019726,2]
[370369070,1751982645794,-460.0,0.00019726,2]
[370369071,1751982645806,-460.0,0.00019726,2]
[370369072,1751982645818,-1367.37,0.00019726,2]
[370369073,1751982645829,-460.0,0.00019726,2]
[370369074,1751982645840,-1587.12,0.00019726,2]
[370369075,1751982645851,-460.0,0.00019726,2]
[370369077,1751982645863,-460.0,0.00019726,2]
[370369079,1751982645874,-265.8931998,0.00019726,2]
[370369081,1751982645886,-460.0,0.00019726,2]
[370369083,1751982645899,-1173.78,0.00019726,2]
[370369084,1751982645911,-550.33,0.00019726,2]
[370369085,1751982645924,-2831.46,0.00019726,2]
[370369087,1751982645936,-867.07,0.00019726,2]
[370369089,1751982645948,-548.91,0.00019726,2]
[370369090,1751982645961,-460.0,0.00019726,2]
[370369091,1751982645972,-460.0,0.00019726,2]
[370369092,1751982645983,-1111.34,0.00019726,2]
[370369093,1751982645996,-842.96,0.00019726,2]
[370369094,1751982646006,-992.0,0.00019726,2]
[370369095,1751982646018,-460.0,0.00019726,2]
[370369096,1751982646030,-460.0,0.00019726,2]
[370369097,1751982646041,-460.0,0.00019726,2]
[370369099,1751982646052,-2758.85,0.00019726,2]
[370369100,1751982646065,-2353.05,0.00019726,2]
[370369101,1751982646076,-614.8,0.00019726,2]
[370369102,1751982646087,-460.0,0.00019726,2]
[370369103,1751982646098,-460.0,0.00019726,2]
[370369104,1751982646109,-834.63,0.00019726,2]
[370369105,1751982646120,-7277.13,0.00019726,2]
[370369106,1751982646131,-5718.68,0.00019726,2]
[370369107,1751982646141,-2104.48,0.00019726,2]
[370369108,1751982646152,-963.6,0.00019726,2]
[370369109,1751982646164,-460.0,0.00019726,2]
[370369110,1751982646175,-460.0,0.00019726,2]
[370369111,1751982646185,-460.0,0.00019726,2]
[370369112,1751982646196,-460.0,0.00019726,2]
[370369113,1751982646210,-460.0,0.00019726,2]
[370369115,1751982646221,-1628.72,0.00019726,2]
[370369117,1751982646231,-1432.56,0.00019726,2]
[370369118,1751982646242,-460.0,0.00019726,2]
[370369119,1751982646253,-460.0,0.00019726,2]
[370369120,1751982646264,-1063.14,0.00019726,2]
[370369121,1751982646275,-460.0,0.00019726,2]
[370369122,1751982646286,-415.96924658,0.00019726,2]
[370369123,1751982646296,-550.48,0.00019726,2]
[370369124,1751982646309,-5312.05,0.00019726,2]
[370369125,1751982646320,-1380.75,0.00019726,2]
[370369126,1751982646331,-605.69,0.00019726,2]
[370369127,1751982646341,-460.0,0.00019726,2]
[370369128,1751982646352,-460.0,0.00019726,2]
[370369130,1751982646363,-608.25,0.00019726,2]
[370369131,1751982646373,-460.0,0.00019726,2]
[370369132,1751982646385,-460.0,0.00019726,2]
[370369133,1751982646396,-460.0,0.00019726,2]
[370369134,1751982646408,-460.0,0.00019726,2]
[370369135,1751982646419,-460.0,0.00019726,2]
[370369136,1751982646429,-460.0,0.00019726,2]
[370369137,1751982646440,-558.29,0.00019726,2]
[370369138,1751982646452,-460.0,0.00019726,2]
[370369139,1751982646463,-460.0,0.00019726,2]
[370369140,1751982646474,-460.0,0.00019726,2]
[370369141,1751982646487,-460.0,0.00019726,2]
[370369142,1751982646498,-3144.31,0.00019726,2]
[370369143,1751982646509,-460.0,0.00019726,2]
[370369144,1751982646520,-584.23,0.00019726,2]
[370369145,1751982646531,-460.0,0.00019726,2]
[370369146,1751982646544,-460.0,0.00019726,2]
[370369147,1751982646556,-460.0,0.00019726,2]
[370369148,1751982646568,-1253.4,0.00019726,2]
[370369149,1751982646579,-3064.83,0.00019726,2]
[370369150,1751982646590,-460.0,0.00019726,2]
[370369151,1751982646601,-1068.32,0.00019726,2]
[370369152,1751982646612,-715.89,0.00019726,2]
[370369153,1751982646623,-578.89,0.00019726,2]
[370369154,1751982646634,-677.16,0.00019726,2]
[370369155,1751982646644,-1477.01,0.00019726,2]
[370369156,1751982646656,-647.4,0.00019726,2]
[370369157,1751982646666,-1565.89,0.00019726,2]
[370369158,1751982646677,-460.0,0.00019726,2]
[370369159,1751982646688,-460.0,0.00019726,2]
[370369160,1751982646701,-1476.13,0.00019726,2]
[370369161,1751982646712,-1288.68,0.00019726,2]
[370369162,1751982646722,-810.44,0.00019726,2]
[370369163,1751982646733,-460.0,0.00019726,2]
[370369164,1751982646743,-1167.91,0.00019726,2]
[370369165,1751982646754,-460.0,0.00019726,2]
[370369166,1751982646765,-479.22,0.00019726,2]
[370369167,1751982646776,-460.0,0.00019726,2]
[370369168,1751982646787,-2720.72,0.00019726,2]
[370369169,1751982646797,-460.0,0.00019726,2]
[370369170,1751982646811,-662.2,0.00019726,2]
[370369171,1751982646822,-460.0,0.00019726,2]
[370369172,1751982646832,-460.0,0.00019726,2]
[370369173,1751982646842,-460.0,0.00019726,2]
[370369174,1751982646852,-211.0,0.00019726,3]
[370369175,1751982646862,-1422.0,0.00019753,2]
[370369176,1751982646872,-605.16461328,0.00019753,2]
[370369177,1751982646882,-967.0,0.00019765,2]
[370369178,1751982646894,-705.0,0.00019765,2]
[370369179,1751982646906,-2153.0,0.00019765,2]
[370369180,1751982646916,-205.418,0.00019765,2]
[370369181,1751982646928,-407.698,0.00019765,2]
[370369182,1751982646938,-4184.3289902,0.00019772,2]
[370369183,1751982646950,-168.0,0.00019777,2]
[370369184,1751982646960,-1422.0,0.0001978,2]
[370369185,1751982646971,-151.0,0.000198,2]
[370369186,1751982646984,-1422.0,0.00019807,2]
[370369187,1751982646995,-1422.0,0.00019835,2]
[370369188,1751982647007,-1422.0,0.00019862,2]
[370369189,1751982647020,-1422.0,0.0001989,2]
[370369190,1751982647031,-151.0,0.000199,2]
[370369191,1751982647043,-2452.58417885,0.000199,2]
[370369192,1751982647054,-1422.0,0.00019917,2]
[370369193,1751982647064,-837.89306043,0.00019928,2]
[370369194,1751982647075,-160.0,0.00019928,2]
[370369195,1751982647085,-215.2437778,0.00019928,2]
[370369196,1751982647095,-230.51100374,0.00019928,2]
[370369197,1751982647106,-189494.69733873,0.0001993,2]
[370369198,1751982647612,-4953.49097643,0.0001993,2]
[370369199,1751982647625,-5605.38598848,0.0001993,2]
[370369200,1751982647637,-19643.89098744,0.0001993,2]
[370369201,1751982647649,-325.26,0.0001993,2]
[370369202,1751982648331,-250.60326963,0.00018528,2]
[370369203,1751982648340,-182.24,0.00019068,3]
[370369204,1751982648350,-500.0,0.0001907,2]
[370369205,1751982648359,-500.0,0.0001907,2]
[370369206,1751982648369,-500.0,0.0001907,2]
[370369207,1751982648378,-261.33641709,0.0001907,2]
[370369208,1751982648673,2820.96284683,0.000184,2]
[370369209,1751982648900,-238.66358291,0.0001907,2]
[370369210,1751982648910,-500.0,0.0001907,2]
[370369211,1751982648919,-402.52596568,0.0001907,2]
[370369212,1751982648929,-500.0,0.0001907,2]
[370369213,1751982648938,-500.0,0.0001907,2]
[370369214,1751982648948,-500.0,0.0001907,2]
[370369215,1751982648957,-500.0,0.0001907,2]
[370369216,1751982648967,-500.0,0.0001907,2]
[370369217,1751982648976,-500.0,0.0001907,2]
[370369218,1751982648985,-500.0,0.0001907,2]
[370369219,1751982648995,-500.0,0.0001907,2]
[370369220,1751982649004,-500.0,0.0001907,2]
[370369221,1751982649014,-500.0,0.0001907,2]
[370369222,1751982649024,-500.0,0.0001907,2]
[370369223,1751982649033,-189517.21258081,0.0001993,2]
[370369224,1751982649045,-16699.22211375,0.0001993,2]
[370369225,1751982649057,-236953.41314436,0.0001993,2]
[370369226,1751982649068,-848.40570879,0.00019931,2]
[370369227,1751982649078,-1422.0,0.00019944,2]
[370369228,1751982649088,-1422.0,0.00019972,2]
[370369229,1751982649098,-1422.0,0.00019999,2]
[370369230,1751982649107,-460.0,0.0002,2]
[370369231,1751982649116,-460.0,0.0002,2]
[370369232,1751982649126,-460.0,0.0002,2]
[370369233,1751982649135,-460.0,0.0002,2]
[370369234,1751982649145,-460.0,0.0002,2]
[370369235,1751982649154,-460.0,0.0002,2]
[370369236,1751982649163,-460.0,0.0002,2]
[370369237,1751982649172,-460.0,0.0002,2]
[370369238,1751982649182,-460.0,0.0002,2]
[370369239,1751982649191,-460.0,0.0002,2]
[370369240,1751982649201,-460.0,0.0002,2]
[370369241,1751982649210,-460.0,0.0002,2]
[370369242,1751982649219,-460.0,0.0002,2]
[370369243,1751982649229,-460.0,0.0002,2]
[370369244,1751982649238,-460.0,0.0002,2]
[370369245,1751982649248,-460.0,0.0002,2]
[370369246,1751982649258,-502.55,0.0002,2]
[370369247,1751982649267,-460.0,0.0002,2]
[370369248,1751982649277,-460.0,0.0002,2]
[370369249,1751982649286,-516.41,0.0002,2]
[370369250,1751982649295,-460.0,0.0002,2]
[370369251,1751982649305,-460.0,0.0002,2]
[370369252,1751982649316,-460.0,0.0002,2]
[370369253,1751982649325,-460.0,0.0002,2]
[370369254,1751982649335,-460.0,0.0002,2]
[370369255,1751982649344,-483.42,0.0002,2]
[370369256,1751982649354,-625.67,0.0002,2]
[370369257,1751982649363,-752.9,0.0002,2]
[370369258,1751982649373,-567.1,0.0002,2]
[370369259,1751982649382,-460.0,0.0002,2]
[370369260,1751982649392,-460.0,0.0002,2]
[370369261,1751982649401,-460.0,0.0002,2]
[370369262,1751982649410,-460.0,0.0002,2]
[370369263,1751982649420,-460.0,0.0002,2]
[370369264,1751982649430,-460.0,0.0002,2]
[370369265,1751982649440,-460.0,0.0002,2]
[370369266,1751982649450,-460.0,0.0002,2]
[370369267,1751982649459,-460.0,0.0002,2]
[370369268,1751982649469,-980.91,0.0002,2]
[370369269,1751982649478,-460.0,0.0002,2]
[370369270,1751982649488,-460.0,0.0002,2]
[370369271,1751982649498,-460.0,0.0002,2]
[370369272,1751982649507,-915.77,0.0002,2]
[370369273,1751982649517,-538.3,0.0002,2]
[370369274,1751982649527,-460.0,0.0002,2]
[370369275,1751982649536,-460.0,0.0002,2]
[370369276,1751982649547,-460.0,0.0002,2]
[370369277,1751982649556,-667.98,0.0002,2]
[370369278,1751982649567,-460.0,0.0002,2]
[370369279,1751982649577,-460.0,0.0002,2]
[370369280,1751982649587,-460.0,0.0002,2]
[370369281,1751982649596,-300.34383223,0.0002,2]
[370369282,1751982649606,-460.0,0.0002,2]
[370369283,1751982649616,-1367.37,0.0002,2]
[370369284,1751982649626,-460.0,0.0002,2]
[370369285,1751982649636,-1587.12,0.0002,2]
[370369286,1751982649646,-460.0,0.0002,2]
[370369287,1751982649656,-460.0,0.0002,2]
[370369288,1751982649667,-1173.78,0.0002,2]
[370369289,1751982649679,-150.0,0.0002,30]
[370369290,1751982649688,-548.91,0.0002,2]
[370369291,1751982649698,-460.0,0.0002,2]
[370369292,1751982649709,-460.0,0.0002,2]
[370369293,1751982649718,-1111.34,0.0002,2]
[370369294,1751982649731,-842.96,0.0002,2]
[370369295,1751982649743,-992.0,0.0002,2]
[370369296,1751982649753,-460.0,0.0002,2]
[370369297,1751982649762,-460.0,0.0002,2]